bitfinex/quotes_SOLUSD_20240825
["timestamp","ask_amount","ask_price","bid_price","bid_amount"]
[1724585477236,0.8073251,157.93,157.86,24.58159708]
[1724585477437,0.8073251,157.93,157.87,2.64818215]
[1724585477634,0.8073251,157.93,157.88,2.64818215]
[1724585477941,0.8073251,157.93,157.89,2.64818215]
[1724585478128,0.8073251,157.93,157.9,2.64818215]
[1724585478439,0.8073251,157.93,157.91,2.64818215]
[1724585478608,0.8073251,157.93,157.86,24.58159708]
[1724585478811,0.8073251,157.93,157.87,2.64832547]
[1724585479038,0.8073251,157.93,157.88,2.64832547]
[1724585479217,0.8073251,157.93,157.89,2.64832547]
[1724585479420,0.8073251,157.93,157.9,2.64832547]
[1724585479633,0.8073251,157.93,157.91,2.64832547]
[1724585479856,0.8073251,157.93,157.92,18.52392547]
[1724585481757,0.8073251,157.93,157.92,2.64832547]
[1724585482378,0.8073251,157.93,157.88,15.8756]
[1724585482551,0.8073251,157.93,157.89,2.64507075]
[1724585482733,0.8073251,157.93,157.88,15.8756]
[1724585482734,0.8073251,157.93,157.9,2.64507075]
[1724585482935,0.8073251,157.93,157.91,2.64507075]
[1724585483235,0.8073251,157.93,157.88,15.8756]
[1724585483555,0.8073251,157.93,157.89,2.64507917]
[1724585483760,0.8073251,157.93,157.9,2.64507917]
[1724585483940,0.8073251,157.93,157.91,2.64507917]
[1724585484141,0.8073251,157.93,157.88,15.8756]
[1724585484348,0.8073251,157.93,157.89,2.64483628]
[1724585484663,0.8073251,157.93,157.9,2.64483628]
[1724585484955,0.8073251,157.93,157.91,2.64483628]
[1724585485157,0.8073251,157.93,157.89,1.26634051]
[1724585485456,0.8073251,157.93,157.9,2.64496526]
[1724585485641,0.8073251,157.93,157.91,2.64496526]
[1724585485842,0.8073251,157.93,157.89,1.26634051]
[1724585486042,0.8073251,157.93,157.89,46.26634051]
[1724585486364,0.8073251,157.93,157.89,45.0]
[1724585491361,0.8073251,157.93,157.9,1.26618558]
[1724585492358,0.8073251,157.93,157.89,45.0]
[1724585497177,0.8073251,157.93,157.89,52.25641986]
[1724585498381,16.4994,158.04,157.92,36.0812]
[1724585498542,16.4994,158.04,157.93,45.0]
[1724585498744,0.5,158.03,157.93,45.0]
[1724585499261,0.5,158.03,157.92,16.0812]
[1724585499979,45.5,158.03,157.92,16.0812]
[1724585500158,45.0,158.03,157.93,1.26588365]
[1724585500469,45.0,158.03,157.92,16.0812]
[1724585500861,45.0,158.03,157.93,1.26612228]
[1724585501771,6.676,158.02,157.9,12.79463987]
[1724585501957,16.2907,158.0,157.88,24.77197091]
[1724585502268,0.5,157.99,157.88,16.0812]
[1724585502463,16.2907,158.0,157.89,1.26627905]
[1724585502668,16.2907,158.0,157.9,1.26620199]
[1724585502955,0.5,157.99,157.88,16.0812]
[1724585503361,0.5,157.99,157.89,45.0]
[1724585504958,0.5,157.99,157.9,4.12078608]
[1724585506475,0.5,157.99,157.91,4.12078608]
[1724585506662,45.5,157.99,157.9,4.12078608]
[1724585506861,45.5,157.99,157.91,4.12078608]
[1724585507169,45.5,157.99,157.89,4.12078608]
[1724585507476,45.0,157.99,157.9,5.38701349]
[1724585507771,0.5,157.98,157.89,4.12078608]
[1724585507974,0.5,157.98,157.9,4.12078608]
[1724585508147,0.5,157.98,157.87,12.9901862]
[1724585508148,16.5103,157.96,157.89,4.12078608]
[1724585508348,16.5103,157.96,157.88,4.12078608]
[1724585508349,0.5,157.95,157.88,4.12078608]
[1724585508793,0.5,157.95,157.89,4.12078608]
[1724585508954,17.0103,157.96,157.88,4.12078608]
[1724585509469,17.0103,157.96,157.89,4.12078608]
[1724585509681,0.5,157.95,157.88,4.12078608]
[1724585510393,0.5,157.95,157.86,4.12078608]
[1724585510573,45.5,157.95,157.87,4.12078608]
[1724585510766,45.5,157.95,157.84,6.6190541]
[1724585510963,45.5,157.95,157.85,4.12078608]
[1724585511182,6.2389,157.94,157.86,4.12078608]
[1724585511373,45.0,157.93,157.87,4.12078608]
[1724585511577,6.2389,157.94,157.86,4.12078608]
[1724585511776,6.2389,157.94,157.84,6.6190541]
[1724585511777,6.7389,157.94,157.87,4.12207624]
[1724585512161,6.7389,157.94,157.88,4.12207624]
[1724585512385,6.7389,157.94,157.85,4.12207624]
[1724585512587,45.0,157.93,157.87,30.0]
[1724585512780,45.0,157.93,157.88,4.12207624]
[1724585513501,6.2389,157.94,157.87,30.0]
[1724585513502,6.2389,157.94,157.89,4.12207624]
[1724585513824,6.2389,157.94,157.9,34.12207624]
[1724585513984,6.2389,157.94,157.9,34.12138215]
[1724585514369,6.2389,157.94,157.9,30.0]
[1724585516068,16.5103,157.96,157.91,1.26647545]
[1724585516271,16.5103,157.96,157.92,30.0]
[1724585517423,6.2389,157.98,157.92,30.0]
[1724585518415,6.2389,157.98,157.93,2.00878963]
[1724585518916,6.2389,157.98,157.87,22.00878963]
[1724585519097,0.5,157.97,157.89,30.0]
[1724585519303,0.5,157.97,157.9,2.00878963]
[1724585519513,0.5,157.97,157.91,2.00878963]
[1724585520422,51.8304,157.97,157.91,2.00913643]
[1724585520591,51.3304,157.97,157.86,15.0463]
[1724585520819,51.3304,157.97,157.87,33.27627401]
[1724585521113,51.3304,157.97,157.88,2.0096746]
[1724585521322,51.3304,157.97,157.89,2.0096746]
[1724585521495,51.3304,157.97,157.9,2.0096746]
[1724585521689,51.3304,157.97,157.91,2.0096746]
[1724585522005,51.3304,157.97,157.89,2.0096746]
[1724585522203,51.3304,157.97,157.9,2.0096746]
[1724585522519,0.5,157.96,157.91,2.00988134]
[1724585522726,0.5,157.96,157.92,2.00939404]
[1724585522898,0.5,157.96,157.87,2.00939404]
[1724585523220,0.5,157.96,157.88,2.00939404]
[1724585523515,45.0,157.97,157.89,2.00939404]
[1724585523711,0.5,157.96,157.9,2.00939404]
[1724585523907,0.5,157.96,157.91,2.00939404]
[1724585524096,0.5,157.96,157.92,2.00939404]
[1724585524296,0.5,157.96,157.86,15.0463]
[1724585524596,0.5,157.96,157.87,32.00929853]
[1724585525122,23.0136,157.95,157.88,2.00929853]
[1724585525328,45.0,157.94,157.89,2.00929853]
[1724585525628,6.3332,157.9,157.86,2.01121864]
[1724585525804,45.5,157.89,157.77,15.9058]
[1724585525988,45.5,157.89,157.78,38.63381501]
[1724585526187,45.5,157.89,157.79,2.01234587]
[1724585526390,45.5,157.89,157.8,2.01234587]
[1724585526626,6.0893,157.88,157.81,2.01234587]
[1724585526918,0.5,157.87,157.82,2.01234587]
[1724585527225,0.5,157.87,157.83,2.01234587]
[1724585527226,45.5,157.87,157.83,2.01234587]
[1724585527394,45.5,157.87,157.79,2.01234587]
[1724585527594,51.8347,157.87,157.73,6.62368629]
[1724585527833,51.8347,157.87,157.74,2.01411936]
[1724585527998,51.8347,157.87,157.73,6.62368629]
[1724585527999,51.8347,157.87,157.75,2.01411936]
[1724585528201,51.8347,157.87,157.76,2.01411936]
[1724585528398,51.8347,157.87,157.77,2.01411936]
[1724585528715,6.3347,157.86,157.78,2.01411936]
[1724585528892,6.3347,157.86,157.79,2.01411936]
[1724585528893,45.5,157.85,157.79,2.01411936]
[1724585529089,45.5,157.85,157.74,2.01411936]
[1724585529328,45.5,157.85,157.75,2.01411936]
[1724585529629,45.5,157.85,157.76,2.01411936]
[1724585529806,45.5,157.85,157.77,2.01411936]
[1724585530001,6.3358,157.84,157.74,2.01411936]
[1724585530328,16.1825,157.82,157.74,2.01411936]
[1724585530536,0.5,157.81,157.69,2.01411936]
[1724585530850,51.5893,157.81,157.7,8.63873429]
[1724585531000,51.5893,157.81,157.71,2.01411936]
[1724585531199,51.5893,157.81,157.72,2.01411936]
[1724585531396,51.5893,157.81,157.7,6.62461493]
[1724585531397,51.5893,157.81,157.71,2.01411936]
[1724585532148,51.5893,157.81,157.7,8.63873429]
[1724585532359,51.5893,157.81,157.7,6.62461493]
[1724585532541,51.5893,157.81,157.7,8.63873429]
[1724585532846,51.5893,157.81,157.69,2.01411936]
[1724585533051,26.3375,157.8,157.65,2.01411936]
[1724585533221,45.5,157.79,157.65,38.64066308]
[1724585533422,45.5,157.79,157.66,2.01411936]
[1724585534056,45.5,157.79,157.65,36.62654372]
[1724585534259,45.5,157.79,157.66,2.01822617]
[1724585535560,51.8375,157.79,157.66,2.01822617]
[1724585535724,45.5,157.79,157.66,2.01822617]
[1724585536134,45.5,157.79,157.65,36.62654372]
[1724585539950,45.5,157.79,157.65,6.62654372]
[1724585541048,45.0,157.79,157.66,46.26796948]
[1724585541241,0.5,157.78,157.66,45.0]
[1724585542335,45.0,157.79,157.66,45.0]
[1724585543132,0.5,157.78,157.67,30.0]
[1724585543444,0.5,157.78,157.68,45.0]
[1724585543759,15.8992,157.77,157.67,30.0]
[1724585543945,45.0,157.76,157.67,30.0]
[1724585544132,0.5,157.75,157.67,30.0]
[1724585544846,0.5,157.75,157.66,6.62605739]
[1724585545233,45.0,157.76,157.66,6.62605739]
[1724585545432,0.5,157.75,157.66,6.62605739]
[1724585546240,6.5575,157.74,157.66,6.62605739]
[1724585546654,0.5,157.73,157.66,6.62605739]
[1724585547459,0.5,157.73,157.62,7.25641986]
[1724585547460,0.5,157.73,157.63,6.6278258]
[1724585547768,45.5,157.73,157.63,6.6278258]
[1724585548249,0.5,157.73,157.63,6.6278258]
[1724585548448,0.5,157.73,157.64,30.0]
[1724585549076,0.5,157.73,157.65,2.66493579]
[1724585550067,0.5,157.73,157.65,2.66441282]
[1724585551765,6.5575,157.74,157.65,47.66441282]
[1724585551973,6.5575,157.74,157.66,2.66441282]
[1724585552265,6.5575,157.74,157.66,2.66383462]
[1724585553269,6.5575,157.74,157.65,45.0]
[1724585553565,6.5575,157.74,157.66,2.66376936]
[1724585554768,6.5575,157.74,157.66,47.66376936]
[1724585554978,15.8992,157.77,157.67,2.66376936]
[1724585555180,15.8992,157.77,157.67,47.66376936]
[1724585555356,15.8992,157.77,157.68,2.66376936]
[1724585555546,15.8992,157.77,157.68,47.66376936]
[1724585555751,15.8992,157.77,157.69,2.66376936]
[1724585556065,16.3992,157.77,157.69,2.66376936]
[1724585556253,0.5,157.76,157.65,22.01896526]
[1724585556587,0.5,157.76,157.66,77.01896526]
[1724585556760,0.5,157.76,157.67,2.66189448]
[1724585559565,0.5,157.76,157.67,2.66203309]
[1724585560373,15.8992,157.77,157.68,1.2680425]
[1724585561856,16.3992,157.77,157.67,2.66203309]
[1724585562054,15.8992,157.77,157.67,2.66203309]
[1724585562254,15.8992,157.77,157.68,30.0]
[1724585562550,15.8992,157.77,157.69,3.92986203]
[1724585563461,15.8992,157.77,157.7,30.0]
[1724585563660,15.8992,157.77,157.71,2.66203309]
[1724585564479,15.8992,157.77,157.72,1.26770866]
[1724585567066,15.8992,157.77,157.72,3.92715251]
[1724585567472,15.8992,157.77,157.72,2.65944385]
[1724585568258,15.8992,157.77,157.73,2.65944385]
[1724585568458,15.8992,157.77,157.72,2.65944385]
[1724585568666,6.5575,157.78,157.73,2.65944385]
[1724585568877,6.5575,157.78,157.71,6.84419904]
[1724585568878,6.5575,157.78,157.74,1.26770946]
[1724585569099,6.5575,157.78,157.75,2.65944385]
[1724585569593,6.5575,157.78,157.76,2.65944385]
[1724585569884,6.5575,157.78,157.77,2.65944385]
[1724585570462,15.0747,157.8,157.77,2.65944385]
[1724585570664,15.0747,157.8,157.72,20.0]
[1724585570665,15.0747,157.8,157.78,2.65944385]
[1724585570873,15.0747,157.8,157.72,20.0]
[1724585570874,15.0747,157.8,157.79,2.65944385]
[1724585572272,15.0747,157.8,157.76,6.84419904]
[1724585572471,15.0747,157.8,157.77,2.65541951]
[1724585572669,15.0747,157.8,157.78,2.65541951]
[1724585572983,15.0747,157.8,157.79,2.65541951]
[1724585575555,15.0747,157.8,157.79,2.65501062]
[1724585576601,15.0747,157.8,157.72,20.0]
[1724585576780,15.0747,157.8,157.79,2.65501148]
[1724585577179,6.3572,157.83,157.79,2.65501148]
[1724585578103,6.3572,157.87,157.79,2.65501148]
[1724585578269,6.3572,157.87,157.8,10.75311125]
[1724585579477,6.3572,157.87,157.8,9.48621941]
[1724585579677,6.3572,157.87,157.81,45.0]
[1724585580688,6.3572,157.87,157.81,75.0]
[1724585581300,6.3572,157.87,157.82,2.64869613]
[1724585581898,6.3572,157.87,157.81,75.0]
[1724585583810,6.8572,157.87,157.82,30.0]
[1724585583977,6.8572,157.87,157.82,49.65777319]
[1724585584180,6.8572,157.87,157.82,30.0]
[1724585584880,6.8572,157.87,157.77,7.25641986]
[1724585585082,6.8572,157.87,157.79,30.0]
[1724585586699,6.8572,157.87,157.77,7.25641986]
[1724585589907,6.8572,157.87,157.78,30.0]
[1724585590689,6.3572,157.87,157.79,7.25641986]
[1724585590887,6.3572,157.87,157.8,1.2669989]
[1724585592210,6.3572,157.87,157.81,30.0]
[1724585592409,6.3572,157.87,157.82,1.26701189]
[1724585593305,6.3572,157.87,157.83,1.26690349]
[1724585594807,6.3572,157.87,157.83,30.0]
[1724585595011,15.0747,157.88,157.83,30.0]
[1724585595807,15.0747,157.88,157.79,7.25641986]
[1724585596118,15.0747,157.88,157.8,75.0]
[1724585598016,15.0747,157.88,157.8,82.25641986]
[1724585601718,15.0747,157.88,157.8,102.25641986]
[1724585602021,15.0747,157.88,157.81,28.52318309]
[1724585602224,15.0747,157.88,157.82,76.26676319]
[1724585602391,15.0747,157.88,157.83,1.26676319]
[1724585603233,15.0747,157.88,157.83,31.26676319]
[1724585603396,15.0747,157.88,157.83,30.0]
[1724585604533,15.0747,157.88,157.82,45.0]
[1724585604895,15.0747,157.88,157.83,30.0]
[1724585605799,15.0747,157.88,157.82,45.0]
[1724585606206,15.0747,157.88,157.81,7.25641986]
[1724585606508,15.0747,157.88,157.82,30.0]
[1724585607196,15.0747,157.88,157.81,7.25641986]
[1724585607610,15.0747,157.88,157.82,30.0]
[1724585609600,15.0747,157.88,157.82,37.25641986]
[1724585611428,15.0747,157.88,157.83,1.26686389]
[1724585611728,15.0747,157.88,157.83,31.26686389]
[1724585612999,15.0747,157.88,157.84,1.26685993]
[1724585616926,15.0747,157.88,157.85,1.26679343]
[1724585617222,15.0747,157.88,157.82,7.25641986]
[1724585617223,15.0747,157.88,157.83,1.26679255]
[1724585618703,15.0747,157.88,157.82,7.25641986]
[1724585619628,15.0747,157.88,157.83,45.0]
[1724585622935,15.0747,157.88,157.84,30.0]
[1724585626437,6.3075,157.91,157.84,30.0]
[1724585628126,6.3075,157.91,157.85,46.26658283]
[1724585628445,6.3075,157.91,157.85,82.25641986]
[1724585629445,6.3075,157.91,157.85,37.25641986]
[1724585630845,6.3075,157.91,157.86,3.90666374]
[1724585631037,6.3075,157.91,157.87,3.90666374]
[1724585631243,6.3075,157.91,157.85,7.25641986]
[1724585631446,6.3075,157.91,157.86,3.90664844]
[1724585631652,6.3075,157.91,157.85,7.25641986]
[1724585632143,6.3075,157.91,157.8,41.52612001]
[1724585632144,16.3072,157.89,157.8,5.53822001]
[1724585632330,0.5,157.88,157.81,36.61986227]
[1724585632736,0.5,157.88,157.81,6.61986227]
[1724585633932,16.3072,157.89,157.82,1.2669305]
[1724585634145,16.3072,157.89,157.82,8.52335036]
[1724585634447,16.3072,157.89,157.82,7.25641986]
[1724585634624,16.3072,157.89,157.83,1.58516457]
[1724585634825,16.3072,157.89,157.84,1.58516457]
[1724585635134,16.3072,157.89,157.85,1.58516457]
[1724585635342,16.3072,157.89,157.86,1.58516457]
[1724585635553,16.3072,157.89,157.87,1.58516457]
[1724585635730,16.3072,157.89,157.88,1.58516457]
[1724585637533,16.3072,157.89,157.82,7.25641986]
[1724585637730,16.3072,157.89,157.83,1.58525732]
[1724585637947,16.3072,157.89,157.84,1.58525732]
[1724585638249,16.3072,157.89,157.85,1.58525732]
[1724585638425,16.3072,157.89,157.86,1.58525732]
[1724585638621,16.3072,157.89,157.87,1.58525732]
[1724585638932,16.3072,157.89,157.88,1.58525732]
[1724585642153,16.3072,157.89,157.81,13.87628213]
[1724585643145,16.3072,157.89,157.82,2.64390136]
[1724585643973,16.3072,157.89,157.83,2.64390136]
[1724585644354,16.3072,157.89,157.84,4.11583903]
[1724585644675,16.3072,157.89,157.81,13.87628213]
[1724585646940,16.3072,157.89,157.82,8.52328042]
[1724585647154,16.3072,157.89,157.82,7.25641986]
[1724585647553,16.3072,157.89,157.84,7.80878163]
[1724585647762,16.3072,157.89,157.85,1.26684245]
[1724585649268,16.3072,157.89,157.84,7.81060791]
[1724585652254,16.3072,157.89,157.82,7.25641986]
[1724585652459,16.3072,157.89,157.84,7.81424303]
[1724585657799,15.0573,157.87,157.84,7.81424303]
[1724585658097,15.0573,157.85,157.81,14.43430515]
[1724585658382,51.6469,157.84,157.79,7.81424303]
[1724585658593,51.6469,157.84,157.78,7.81424303]
[1724585658759,51.6469,157.84,157.78,7.82526881]
[1724585659183,51.6469,157.84,157.77,7.82526881]
[1724585659489,51.6469,157.84,157.76,7.82526881]
[1724585660078,15.0573,157.83,157.76,7.82526881]
[1724585660291,0.5,157.82,157.76,7.82526881]
[1724585661474,0.5,157.82,157.75,7.82526881]
[1724585662194,21.2042,157.81,157.75,7.82714444]
[1724585662387,0.5,157.8,157.74,7.82714444]
[1724585662589,0.5,157.8,157.73,7.82714444]
[1724585663282,0.5,157.8,157.72,13.36536445]
[1724585665292,0.5,157.8,157.72,5.53822001]
[1724585668510,22.4794,157.79,157.72,5.53822001]
[1724585668723,0.5,157.78,157.69,7.25641986]
[1724585671085,45.5,157.78,157.68,6.62560519]
[1724585671482,45.5,157.78,157.67,5.53822001]
[1724585672503,22.4794,157.77,157.67,5.53822001]
[1724585672713,45.5,157.76,157.67,5.53822001]
[1724585673019,6.1583,157.74,157.61,41.0630691]
[1724585673218,45.5,157.73,157.62,19.41739386]
[1724585674389,6.1583,157.74,157.62,19.41739386]
[1724585674586,6.6583,157.74,157.62,19.41739386]
[1724585674788,0.5,157.73,157.62,19.41739386]
[1724585675119,0.5,157.73,157.63,45.0]
[1724585677002,6.1583,157.74,157.63,52.25641986]
[1724585677190,6.1583,157.74,157.64,7.25641986]
[1724585677384,6.1583,157.74,157.65,45.0]
[1724585679094,6.1583,157.74,157.66,1.26808886]
[1724585680392,6.1583,157.74,157.73,10.0]
[1724585690402,16.3211,157.75,157.73,10.0]
[1724585698931,6.1739,157.78,157.73,10.0]
[1724585699428,6.6739,157.78,157.73,10.0]
[1724585701729,6.1739,157.78,157.73,10.0]
[1724585702232,6.6739,157.78,157.73,10.0]
[1724585704036,6.1739,157.78,157.74,1.58632284]
[1724585704547,6.1739,157.78,157.73,10.0]
[1724585704835,6.6739,157.78,157.73,10.0]
[1724585706315,6.6739,157.78,157.74,4.13385411]
[1724585706612,6.6739,157.78,157.75,4.24717881]
[1724585707810,6.6739,157.78,157.75,1.58652702]
[1724585708031,6.6739,157.78,157.73,10.0]
[1724585709014,45.0,157.77,157.73,10.0]
[1724585709212,0.5,157.76,157.74,5.72199588]
[1724585709428,0.5,157.76,157.74,5.83406414]
[1724585709641,0.5,157.76,157.75,1.58656187]
[1724585710613,16.6006,157.75,157.74,1.58654332]
[1724585710813,61.6006,157.75,157.74,3.17336964]
[1724585712812,61.6006,157.75,157.74,3.17338775]
[1724585716814,61.6006,157.75,157.74,1.58654332]
[1724585717430,61.6006,157.75,157.74,3.17344592]
[1724585719213,61.6006,157.75,157.74,1.58654332]
[1724585719420,61.6006,157.75,157.74,1.5868924]
[1724585721528,61.6006,157.75,157.73,10.0]
[1724585721736,45.5,157.74,157.73,10.0]
[1724585721943,45.5,157.74,157.73,11.58692166]
[1724585722823,45.0,157.74,157.73,11.58692166]
[1724585728945,45.5,157.74,157.73,11.58692166]
[1724585729358,45.5,157.74,157.73,10.0]
[1724585729536,45.5,157.74,157.73,11.58692166]
[1724585730441,45.5,157.74,157.73,10.0]
[1724585730833,58.3142,157.74,157.73,10.0]
[1724585731345,78.3142,157.74,157.73,10.0]
[1724585732243,6.3403,157.72,157.6,6.5489]
[1724585732450,71.4747,157.74,157.72,3.6597]
[1724585732653,20.0,157.73,157.72,3.6597]
[1724585732827,20.0,157.73,157.63,1.58739324]
[1724585732828,16.3214,157.72,157.63,1.58739324]
[1724585733026,16.3214,157.72,157.64,1.58739324]
[1724585733339,6.3412,157.7,157.65,1.58739324]
[1724585733564,51.4786,157.69,157.66,1.58739324]
[1724585733842,51.4786,157.69,157.58,12.79403375]
[1724585734048,51.4786,157.69,157.62,1.58750064]
[1724585734246,51.4786,157.69,157.63,1.58750064]
[1724585734448,0.5,157.68,157.64,1.58750064]
[1724585734658,0.5,157.68,157.58,7.25641986]
[1724585734859,0.5,157.68,157.62,1.58762243]
[1724585735156,0.5,157.68,157.63,1.58762243]
[1724585735339,0.5,157.68,157.64,1.58762243]
[1724585735537,51.4786,157.69,157.65,1.58762243]
[1724585735738,51.4786,157.69,157.59,1.26891761]
[1724585736045,51.4786,157.69,157.62,1.58752535]
[1724585736242,0.5,157.68,157.63,1.58752535]
[1724585736567,0.5,157.68,157.64,1.58752535]
[1724585736858,0.5,157.68,157.65,1.58752535]
[1724585737047,0.5,157.68,157.58,7.25641986]
[1724585737365,0.5,157.67,157.62,1.58751462]
[1724585737535,0.5,157.67,157.63,1.58751462]
[1724585737736,0.5,157.67,157.64,1.58751462]
[1724585737936,0.5,157.67,157.65,1.58753243]
[1724585738139,0.5,157.67,157.58,7.25641986]
[1724585738457,6.3439,157.63,157.62,1.58746777]
[1724585738671,0.5,157.63,157.56,1.58746777]
[1724585738832,0.5,157.63,157.57,1.58746777]
[1724585739037,0.5,157.63,157.58,1.58746777]
[1724585739263,0.5,157.63,157.59,1.58746777]
[1724585739557,0.5,157.63,157.53,1.58746777]
[1724585739865,0.5,157.63,157.54,1.58746777]
[1724585740047,0.5,157.63,157.55,1.58746777]
[1724585740246,0.5,157.63,157.56,1.58746777]
[1724585740451,0.5,157.63,157.57,1.58746777]
[1724585740770,0.5,157.63,157.58,1.58746777]
[1724585741068,0.5,157.63,157.59,1.58746777]
[1724585741263,0.5,157.63,157.55,1.58746777]
[1724585741431,0.5,157.63,157.54,6.85919764]
[1724585741432,0.5,157.63,157.56,1.58746777]
[1724585741633,0.5,157.63,157.57,1.58746777]
[1724585741866,16.3105,157.7,157.58,17.57316777]
[1724585742038,0.5,157.69,157.62,1.58746777]
[1724585742234,0.5,157.69,157.58,15.9857]
[1724585742450,0.5,157.69,157.63,1.58754269]
[1724585742774,0.5,157.69,157.62,1.58754269]
[1724585743375,45.5,157.69,157.62,1.58754269]
[1724585743879,45.5,157.69,157.58,15.9857]
[1724585743880,45.5,157.69,157.63,1.58754269]
[1724585744174,45.5,157.69,157.62,1.58754269]
[1724585744384,45.5,157.69,157.63,1.58754269]
[1724585744594,45.5,157.69,157.62,1.58754269]
[1724585744879,0.5,157.69,157.63,1.58754269]
[1724585745092,0.5,157.69,157.64,1.58754269]
[1724585745260,0.5,157.7,157.65,1.58754269]
[1724585745467,0.5,157.7,157.66,1.58754269]
[1724585745663,0.5,157.7,157.67,1.58754269]
[1724585745882,0.5,157.7,157.65,1.58754269]
[1724585746107,0.5,157.7,157.66,1.58754269]
[1724585746261,0.5,157.7,157.67,1.58754269]
[1724585746460,20.5,157.73,157.65,1.58722041]
[1724585746663,20.5,157.73,157.66,1.58722041]
[1724585746963,20.5,157.73,157.63,15.2897]
[1724585747167,6.3411,157.71,157.64,1.5873123]
[1724585747388,45.5,157.7,157.65,1.5873123]
[1724585747555,0.5,157.7,157.66,1.5873123]
[1724585747760,0.5,157.7,157.63,15.2897]
[1724585748069,0.5,157.7,157.64,1.58737517]
[1724585748253,0.5,157.7,157.65,1.58737517]
[1724585748457,0.5,157.7,157.66,1.58737517]
[1724585748654,0.5,157.7,157.63,15.2897]
[1724585748883,0.5,157.7,157.64,1.58739283]
[1724585749065,0.5,157.7,157.65,1.58739283]
[1724585749257,0.5,157.7,157.66,1.58739283]
[1724585749459,0.5,157.7,157.67,1.58739283]
[1724585749764,0.5,157.7,157.63,15.2897]
[1724585749975,0.5,157.7,157.64,1.58738408]
[1724585750160,0.5,157.7,157.65,1.58738408]
[1724585750366,0.5,157.7,157.66,1.58738408]
[1724585750564,0.5,157.7,157.61,2.46061898]
[1724585750765,0.5,157.7,157.62,1.58740088]
[1724585750988,0.5,157.7,157.63,1.58740088]
[1724585751190,0.5,157.7,157.64,1.58740088]
[1724585751393,0.5,157.7,157.65,1.58740088]
[1724585751585,0.5,157.7,157.66,1.58740088]
[1724585751785,0.5,157.7,157.61,2.46061898]
[1724585752006,0.5,157.7,157.62,1.58746708]
[1724585752293,0.5,157.7,157.63,1.58746708]
[1724585752481,15.6145,157.65,157.6,2.02420088]
[1724585752693,15.6145,157.65,157.45,16.110858]
[1724585752694,6.3445,157.62,157.56,1.58846716]
[1724585752878,0.5,157.61,157.46,3.61737117]
[1724585753083,0.5,157.61,157.47,3.61737117]
[1724585753388,6.3457,157.59,157.48,3.61737117]
[1724585753574,45.0,157.58,157.49,1.58845766]
[1724585753783,0.5,157.57,157.5,1.58845766]
[1724585753982,45.0,157.58,157.51,1.58845766]
[1724585754181,45.0,157.58,157.47,1.58845766]
[1724585754379,45.0,157.58,157.48,1.58845766]
[1724585754580,0.5,157.57,157.49,1.58845766]
[1724585754771,0.5,157.57,157.5,1.58845766]
[1724585755074,45.0,157.58,157.51,1.58845766]
[1724585755274,45.0,157.58,157.46,3.29878732]
[1724585755275,45.0,157.58,157.47,1.58845766]
[1724585755571,45.0,157.58,157.46,2.02891351]
[1724585755787,45.0,157.58,157.47,2.85841922]
[1724585755974,45.0,157.58,157.48,1.58863443]
[1724585756172,45.0,157.58,157.49,1.58863443]
[1724585756504,45.0,157.58,157.47,1.58863443]
[1724585756695,45.0,157.58,157.48,1.58863443]
[1724585756696,0.5,157.57,157.48,1.58863443]
[1724585757005,0.5,157.57,157.49,1.58863443]
[1724585757304,45.0,157.58,157.47,1.58863443]
[1724585757603,45.0,157.59,157.48,1.58863443]
[1724585757807,45.0,157.59,157.47,1.58863443]
[1724585758097,6.3466,157.57,157.46,1.58863443]
[1724585758394,45.5,157.56,157.46,1.58863443]
[1724585758600,45.5,157.56,157.45,16.110858]
[1724585764781,0.5,157.54,157.45,16.110858]